bitfinex/quotes_BTCUSD_20240811
["timestamp","ask_amount","ask_price","bid_price","bid_amount"]
[1723349322104,0.19744015,61201.0,61200.0,0.42662996]
[1723349322481,0.17312299,61201.0,61200.0,0.42662996]
[1723349323130,0.12448017,61201.0,61200.0,0.42662996]
[1723349323330,0.17312299,61201.0,61200.0,0.42662996]
[1723349323601,0.05874599,61201.0,61200.0,0.42662996]
[1723349323974,0.01010317,61201.0,61200.0,0.28822996]
[1723349325163,0.01010317,61201.0,61200.0,0.1525163]
[1723349325363,0.43265467,61201.0,61200.0,0.28822471]
[1723349325784,0.42471465,61201.0,61200.0,0.28822471]
[1723349325985,0.4003997,61201.0,61200.0,0.28822471]
[1723349326564,0.40039916,61201.0,61200.0,0.28822471]
[1723349326772,0.35175467,61201.0,61200.0,0.28822471]
[1723349327418,0.40039906,61201.0,61200.0,0.28822471]
[1723349327815,0.35175467,61201.0,61200.0,0.28822471]
[1723349328816,0.35175467,61201.0,61200.0,0.28822812]
[1723349329403,0.42472141,61201.0,61200.0,0.28822812]
[1723349331066,0.35175467,61201.0,61200.0,0.28822812]
[1723349331238,0.4247672,61201.0,61200.0,0.28822812]
[1723349332225,0.4247672,61201.0,61200.0,0.1525163]
[1723349332523,0.35175467,61201.0,61200.0,0.28823031]
[1723349332970,0.19601538,61201.0,61200.0,0.3644302]
[1723349333176,0.18922371,61201.0,61200.0,0.2882302]
[1723349333789,0.41797771,61201.0,61200.0,0.2882302]
[1723349334488,0.44231305,61201.0,61200.0,0.2882302]
[1723349334700,0.344963,61201.0,61200.0,0.2882302]
[1723349335343,0.41797386,61201.0,61200.0,0.2882302]
[1723349335467,0.344963,61201.0,61200.0,0.2882302]
[1723349336128,0.344963,61201.0,61200.0,0.1525163]
[1723349336287,0.344963,61201.0,61200.0,0.2882306]
[1723349337128,0.41797711,61201.0,61200.0,0.2882306]
[1723349338125,0.18922311,61201.0,61200.0,0.2882306]
[1723349338322,0.18922311,61201.0,61200.0,0.4250306]
[1723349338522,0.18922311,61201.0,61200.0,0.3633306]
[1723349339633,0.116209,61201.0,61200.0,0.3633306]
[1723349340595,0.18921538,61201.0,61200.0,0.3633306]
[1723349342281,0.18921538,61201.0,61200.0,0.2882306]
[1723349342954,0.18921538,61201.0,61200.0,0.1525163]
[1723349344104,0.18921538,61201.0,61200.0,0.28822859]
[1723349344512,0.18921538,61201.0,61200.0,0.1525163]
[1723349344690,0.116209,61201.0,61200.0,0.1525163]
[1723349345519,0.116209,61201.0,61200.0,0.28822684]
[1723349347460,0.116209,61201.0,61200.0,0.42393695]
[1723349348513,0.116209,61201.0,61200.0,0.42393697]
[1723349350844,0.116209,61201.0,61200.0,0.56783697]
[1723349351054,0.116209,61201.0,61200.0,0.4239368]
[1723349355139,0.116209,61201.0,61200.0,0.42393697]
[1723349355561,0.18920967,61201.0,61200.0,0.42393697]
[1723349357391,0.18920967,61201.0,61200.0,0.28822643]
[1723349358023,0.41796367,61201.0,61200.0,0.28822643]
[1723349358766,0.41796367,61201.0,61200.0,0.1525163]
[1723349358976,0.41796367,61201.0,61200.0,0.28822877]
[1723349359393,0.41796367,61201.0,61200.0,0.2882289]
[1723349362123,0.344963,61201.0,61200.0,0.2882289]
[1723349362485,0.344963,61201.0,61200.0,0.1525163]
[1723349362688,0.344963,61201.0,61200.0,0.28823072]
[1723349363607,0.44237288,61201.0,61200.0,0.28823072]
[1723349364824,0.46672535,61201.0,61200.0,0.1525163]
[1723349365230,0.344963,61201.0,61200.0,0.1525163]
[1723349365805,0.44241573,61201.0,61200.0,0.28823392]
[1723349366470,0.44241573,61201.0,61200.0,0.28823297]
[1723349367247,0.344963,61201.0,61200.0,0.1525163]
[1723349367625,0.44241933,61201.0,61200.0,0.28823351]
[1723349368677,0.44241564,61201.0,61200.0,0.28823351]
[1723349369231,0.44241564,61201.0,61200.0,0.1525163]
[1723349370872,0.344963,61201.0,61200.0,0.1525163]
[1723349371875,0.44247557,61201.0,61200.0,0.28823299]
[1723349372093,0.4424736,61201.0,61200.0,0.28823298]
[1723349372329,0.4424736,61201.0,61200.0,0.1525163]
[1723349373250,0.4424736,61201.0,61200.0,0.28823311]
[1723349375543,0.344963,61201.0,61200.0,0.28823311]
[1723349375738,0.4424736,61201.0,61200.0,0.28823311]
[1723349375962,0.41807879,61201.0,61200.0,0.28823311]
[1723349376842,0.41808431,61201.0,61200.0,0.28823311]
[1723349377961,0.44245808,61201.0,61200.0,0.1525163]
[1723349378163,0.44245808,61201.0,61200.0,0.28823238]
[1723349380966,0.57965808,61201.0,61200.0,0.28823238]
[1723349381458,0.44248409,61201.0,61200.0,0.28823238]
[1723349381785,0.44248409,61201.0,61200.0,0.28823219]
[1723349381786,0.67123809,61201.0,61200.0,0.28823219]
[1723349382001,0.92113328,61201.0,61200.0,0.1525163]
[1723349382168,0.87473192,61201.0,61200.0,0.1525163]
[1723349384319,1.10348592,61201.0,61200.0,0.1525163]
[1723349384548,1.78348592,61201.0,61200.0,0.1525163]
[1723349386152,1.10348592,61201.0,61200.0,0.1525163]
[1723349393860,1.04178592,61201.0,61200.0,0.1525163]
[1723349394323,0.81303192,61201.0,61200.0,0.1525163]
[1723349397530,0.73753192,61201.0,61200.0,0.1525163]
[1723349401324,0.344963,61201.0,61200.0,0.3007163]
[1723349401533,0.44227709,61201.0,61200.0,0.1525163]
[1723349401686,0.50677709,61201.0,61200.0,0.1525163]
[1723349401890,0.73553109,61201.0,61200.0,0.1525163]
[1723349403080,0.67103109,61201.0,61200.0,0.1525163]
[1723349403280,0.44227709,61201.0,61200.0,0.1525163]
[1723349403512,0.44227709,61201.0,61200.0,0.2355163]
[1723349406234,0.44227709,61201.0,61200.0,0.3007163]
[1723349406447,0.44227709,61201.0,61200.0,0.2355163]
[1723349407610,0.75129201,61201.0,61200.0,0.1525163]
[1723349407996,0.8591554,61201.0,61200.0,0.1525163]
[1723349408311,0.73753192,61201.0,61200.0,0.1525163]
[1723349410155,0.85915585,61201.0,61200.0,0.1525163]
[1723349410621,0.73753192,61201.0,61200.0,0.1525163]
[1723349410774,0.74293289,61201.0,61200.0,0.1525163]
[1723349411137,0.85730989,61201.0,61200.0,0.1525163]
[1723349411953,0.73569992,61201.0,61200.0,0.1525163]
[1723349414567,0.114389,61195.0,61190.0,0.114397]
[1723349414788,0.114389,61195.0,61191.0,0.13572487]
[1723349415087,0.114389,61195.0,61192.0,0.13572487]
[1723349415221,0.0486351,61198.0,61193.0,0.13572487]
[1723349415222,0.11439,61194.0,61193.0,0.13572487]
[1723349417609,0.11439,61194.0,61193.0,0.28192487]
[1723349417844,0.11539,61194.0,61193.0,0.28292487]
[1723349418640,0.11639,61194.0,61193.0,0.28592487]
[1723349418891,0.11639,61194.0,61193.0,0.1502]
[1723349419344,0.001,61194.0,61193.0,0.1472]
[1723349419554,0.114389,61195.0,61193.0,0.28192256]
[1723349419842,0.114389,61195.0,61193.0,0.28492256]
[1723349420096,0.114389,61195.0,61194.0,0.13572256]
[1723349421001,0.116389,61195.0,61194.0,0.13572256]
[1723349421469,0.114389,61195.0,61194.0,0.13572256]
[1723349423179,0.343165,61195.0,61194.0,0.13672256]
[1723349423416,0.345165,61195.0,61194.0,0.13672256]
[1723349424425,0.655041,61195.0,61194.0,0.13672256]
[1723349424655,1.72086308,61195.0,61194.0,0.13672256]
[1723349424895,1.99745686,61195.0,61194.0,0.001]
[1723349425145,2.78519322,61195.0,61194.0,0.001]
[1723349425383,2.94951333,61195.0,61194.0,0.001]
[1723349425621,2.94937102,61195.0,61194.0,0.001]
[1723349426067,3.1129688,61195.0,61194.0,0.001]
[1723349426533,2.948791,61195.0,61194.0,0.001]
[1723349428159,2.7846413,61195.0,61194.0,0.001]
[1723349429387,2.73370937,61195.0,61194.0,0.001]
[1723349430486,2.37191167,61195.0,61194.0,0.001]
[1723349431252,2.88945498,61195.0,61194.0,0.001]
[1723349431494,2.84705559,61195.0,61194.0,0.001]
[1723349431755,2.89421213,61195.0,61194.0,0.001]
[1723349432937,3.03982255,61195.0,61194.0,0.001]
[1723349433156,2.97955477,61195.0,61194.0,0.001]
[1723349433480,3.03990265,61195.0,61194.0,0.001]
[1723349433564,2.5323477,61195.0,61194.0,0.001]
[1723349434305,2.47199982,61195.0,61194.0,0.001]
[1723349434543,2.3263894,61195.0,61194.0,0.001]
[1723349434991,2.53232011,61195.0,61194.0,0.001]
[1723349435224,2.38670969,61195.0,61194.0,0.001]
[1723349436880,2.38668919,61195.0,61194.0,0.001]
[1723349437090,2.38668919,61195.0,61178.0,0.0163492]
[1723349437091,1.261262,61179.0,61178.0,0.0163492]
[1723349437417,2.20635826,61179.0,61178.0,0.0163492]
[1723349437694,2.31299922,61179.0,61178.0,0.0163492]
[1723349437936,2.23279922,61179.0,61178.0,0.0163492]
[1723349438209,2.31299922,61179.0,61178.0,0.0163492]
[1723349438467,2.31499922,61179.0,61178.0,0.0183492]
[1723349438671,2.29066131,61179.0,61178.0,0.0183492]
[1723349439528,2.19371788,61179.0,61178.0,0.0183492]
[1723349440377,2.39049213,61179.0,61178.0,0.0183492]
[1723349440537,2.46315176,61179.0,61178.0,0.0183492]
[1723349440754,2.46315176,61179.0,61178.0,0.007]
[1723349440993,2.46215176,61179.0,61178.0,0.002]
[1723349441159,2.46215176,61179.0,61178.0,0.0029152]
[1723349441565,2.47615176,61179.0,61178.0,0.0029152]
[1723349441766,2.47109155,61179.0,61178.0,0.0009152]
[1723349441980,2.42643192,61179.0,61178.0,0.0009152]
[1723349442185,2.47488394,61179.0,61178.0,0.0009152]
[1723349442410,2.46088394,61179.0,61178.0,0.0009152]
[1723349442795,2.47488394,61179.0,61178.0,0.0009152]
[1723349442994,2.46088394,61179.0,61178.0,0.0009152]
[1723349443194,2.44688394,61179.0,61178.0,0.0009152]
[1723349443596,2.46088394,61179.0,61178.0,0.0009152]
[1723349443797,2.49509155,61179.0,61178.0,0.0009152]
[1723349444024,2.48509155,61179.0,61178.0,0.0009152]
[1723349444176,2.58658162,61179.0,61178.0,0.0009152]
[1723349444742,2.40843192,61179.0,61178.0,0.0009152]
[1723349444940,2.44243192,61179.0,61178.0,0.0009152]
[1723349445262,2.69426792,61179.0,61178.0,0.0009152]
[1723349445466,2.74121762,61179.0,61178.0,0.0009152]
[1723349445789,2.79976504,61179.0,61178.0,0.0009152]
[1723349445991,3.06085817,61179.0,61178.0,0.0009152]
[1723349446347,2.96391474,61179.0,61178.0,0.0009152]
[1723349446972,3.06085817,61179.0,61178.0,0.0009152]
[1723349448327,2.8195365,61179.0,61178.0,0.0009152]
[1723349448582,2.62239307,61179.0,61178.0,0.0009152]
[1723349448785,2.65608369,61179.0,61178.0,0.0009152]
[1723349449116,2.6817076,61179.0,61178.0,0.0009152]
[1723349449320,2.7419254,61179.0,61178.0,0.0009152]
[1723349449768,2.5130894,61179.0,61178.0,0.0009152]
[1723349449969,2.44520901,61179.0,61178.0,0.0009152]
[1723349450178,2.52540901,61179.0,61178.0,0.0009152]
[1723349450900,2.55411606,61179.0,61178.0,0.0009152]
[1723349451126,2.50122721,61179.0,61178.0,0.0009152]
[1723349451862,2.4528716,61179.0,61178.0,0.0009152]
[1723349452055,2.3626716,61179.0,61178.0,0.0009152]
[1723349452356,2.0497356,61179.0,61178.0,0.0009152]
[1723349452527,2.25294769,61179.0,61178.0,0.0009152]
[1723349453174,1.61507569,61179.0,61178.0,0.0009152]
[1723349453293,0.9351359,61179.0,61178.0,0.1478152]
[1723349453487,0.7062999,61179.0,61178.0,0.1478152]
[1723349454284,1.1499719,61179.0,61178.0,0.1478152]
[1723349454567,1.1379719,61179.0,61178.0,0.1478152]
[1723349454771,1.2379719,61179.0,61178.0,0.1508152]
[1723349454973,1.3181719,61179.0,61178.0,0.1508152]
[1723349455181,1.3161719,61179.0,61178.0,0.0039152]
[1723349455345,1.3171719,61179.0,61178.0,0.0039152]
[1723349455955,1.3161719,61179.0,61178.0,0.0039152]
[1723349456188,1.3161719,61179.0,61178.0,0.0819152]
[1723349456189,1.0081359,61179.0,61178.0,0.0819152]
[1723349456419,1.0081359,61179.0,61178.0,0.1500152]
[1723349456789,0.84354588,61179.0,61178.0,0.1480152]
[1723349457205,0.84354588,61179.0,61178.0,0.1500152]
[1723349457408,0.84254588,61179.0,61178.0,0.1480152]
[1723349457814,0.84354588,61179.0,61178.0,0.1510152]
[1723349458852,0.84254588,61179.0,61178.0,0.1510152]
[1723349460085,0.84254588,61179.0,61178.0,0.0039152]
[1723349460592,1.56254588,61179.0,61178.0,0.0039152]
[1723349460824,1.79138188,61179.0,61178.0,0.0039152]
[1723349462214,1.87158188,61179.0,61178.0,0.0039152]
[1723349463118,1.87158188,61179.0,61178.0,0.0009152]
[1723349463332,1.87458188,61179.0,61178.0,0.0009152]
[1723349463981,1.87958188,61179.0,61178.0,0.0009152]
[1723349464396,1.87458188,61179.0,61178.0,0.0009152]
[1723349464768,1.87958188,61179.0,61178.0,0.0009152]
[1723349465787,1.88041388,61179.0,61178.0,0.0009152]
[1723349468437,1.57137788,61179.0,61178.0,0.0009152]
[1723349468661,1.57137788,61179.0,61178.0,0.0776152]
[1723349470093,1.70901892,61179.0,61178.0,0.0776152]
[1723349470438,1.70901892,61179.0,61178.0,0.0009152]
[1723349470439,1.75743632,61179.0,61178.0,0.0009152]
[1723349470647,1.70901892,61179.0,61178.0,0.0009152]
[1723349471022,1.80021388,61179.0,61178.0,0.0009152]
[1723349471628,1.87305876,61179.0,61178.0,0.0009152]
[1723349472029,1.64422276,61179.0,61178.0,0.0009152]
[1723349472923,1.61994881,61179.0,61178.0,0.1413152]
[1723349473958,1.57137788,61179.0,61178.0,0.1413152]
[1723349474566,1.84878481,61179.0,61178.0,0.1413152]
[1723349475172,1.61994881,61179.0,61178.0,0.1413152]
[1723349475750,1.84878481,61179.0,61178.0,0.1413152]
[1723349475949,1.61994881,61179.0,61178.0,0.1413152]
[1723349476723,1.84878481,61179.0,61178.0,0.1413152]
[1723349476938,1.61994881,61179.0,61178.0,0.1413152]
[1723349479245,1.61994881,61179.0,61178.0,0.0009152]
[1723349479529,1.89734039,61179.0,61178.0,0.0009152]
[1723349479732,1.80021388,61179.0,61178.0,0.0009152]
[1723349479932,1.81007771,61179.0,61178.0,0.0009152]
[1723349481184,1.90727256,61179.0,61178.0,0.0009152]
[1723349481847,1.88687771,61179.0,61178.0,0.0009152]
[1723349482280,1.94758195,61179.0,61178.0,0.0009152]
[1723349482692,1.94790526,61179.0,61178.0,0.0009152]
[1723349483152,1.94790463,61179.0,61178.0,0.0009152]
[1723349483355,2.00838608,61179.0,61178.0,0.0009152]
[1723349483560,1.88687771,61179.0,61178.0,0.0009152]
[1723349484660,2.00838608,61179.0,61178.0,0.0009152]
[1723349485061,2.00838608,61179.0,61178.0,0.00086028]
[1723349487265,1.93158608,61179.0,61178.0,0.13776028]
[1723349487448,1.57137788,61179.0,61178.0,0.13776028]
[1723349487904,1.64436206,61179.0,61178.0,0.13776028]
[1723349488084,1.57137788,61179.0,61178.0,0.13776028]
[1723349488641,1.64436206,61179.0,61178.0,0.14910948]
[1723349489941,1.57137788,61179.0,61178.0,0.14910948]
[1723349492468,1.64436206,61179.0,61178.0,0.14910948]
[1723349492635,1.57137788,61179.0,61178.0,0.14910948]
[1723349493026,1.64436206,61179.0,61178.0,0.14910948]
[1723349493241,1.87319806,61179.0,61178.0,0.14910948]
[1723349493396,1.57137788,61179.0,61178.0,0.01220948]
[1723349493592,1.66882733,61179.0,61178.0,0.01220948]
[1723349493839,1.80021388,61179.0,61178.0,0.01220948]
[1723349494699,1.86140015,61179.0,61178.0,0.01220948]
[1723349496329,2.00756726,61179.0,61178.0,0.01220948]
[1723349496647,2.36904652,61179.0,61178.0,0.01220948]
[1723349496852,2.51174652,61179.0,61178.0,0.01220948]
[1723349497086,2.51191744,61179.0,61178.0,0.01220948]
[1723349498298,2.75075344,61179.0,61178.0,0.01220948]
[1723349498501,2.93833023,61179.0,61178.0,1e-08]
[1723349498704,2.74075344,61179.0,61178.0,1e-08]
[1723349498903,2.82095344,61179.0,61178.0,1e-08]
[1723349499112,2.59211744,61179.0,61178.0,1e-08]
[1723349499331,2.58411744,61179.0,61178.0,1e-08]
[1723349499723,2.61211744,61179.0,61178.0,1e-08]
[1723349499869,2.59811744,61179.0,61178.0,1e-08]
[1723349500070,2.58411744,61179.0,61178.0,1e-08]
[1723349500272,2.53676025,61179.0,61178.0,1e-08]
[1723349500473,2.82734725,61179.0,61178.0,0.00091521]
[1723349500883,2.59851125,61179.0,61178.0,0.00091521]
[1723349502077,2.45581125,61179.0,61178.0,0.00091521]
[1723349502231,2.68464725,61179.0,61178.0,0.00091521]
[1723349502838,2.69764725,61179.0,61178.0,0.00091521]
[1723349503039,2.68364725,61179.0,61178.0,0.00091521]
[1723349503215,2.68464725,61179.0,61178.0,0.00091521]
[1723349503420,2.69764725,61179.0,61178.0,0.00091521]
[1723349503739,2.69789625,61179.0,61178.0,0.00091521]
[1723349503916,2.82025612,61179.0,61178.0,0.00091521]
[1723349504121,2.81925612,61179.0,61178.0,0.00091521]
[1723349504318,2.75889625,61179.0,61178.0,0.00091521]
[1723349504533,2.82025612,61179.0,61178.0,0.00091521]
[1723349504755,2.83325612,61179.0,61178.0,0.00091521]
[1723349505031,2.81925612,61179.0,61178.0,0.00091521]
[1723349505857,2.82925612,61179.0,61178.0,0.00091521]
[1723349506027,2.85225612,61179.0,61178.0,0.00091521]
[1723349506209,3.00082281,61179.0,61178.0,0.00091521]
[1723349507230,3.00086193,61179.0,61178.0,0.00091521]
[1723349507435,3.00080428,61179.0,61178.0,0.00091521]
[1723349509672,3.16514591,61179.0,61178.0,0.00091521]
[1723349510369,3.08494591,61179.0,61178.0,0.00091521]
[1723349510579,3.16514591,61179.0,61178.0,0.00091521]
[1723349510988,3.16517574,61179.0,61178.0,0.00091521]
[1723349511746,3.16515305,61179.0,61178.0,0.00091521]
[1723349512217,3.00083313,61179.0,61178.0,0.00091521]
[1723349513742,3.02645543,61179.0,61178.0,0.00091521]
[1723349514100,3.19077535,61179.0,61178.0,0.00091521]
[1723349514365,3.12556346,61179.0,61178.0,0.00091521]
[1723349514505,3.18705026,61179.0,61178.0,0.00091521]
[1723349514715,3.18722048,61179.0,61178.0,0.00091521]
[1723349514908,3.18722255,61179.0,61178.0,0.00091521]
[1723349517211,3.18715757,61179.0,61178.0,0.00091521]
[1723349517791,3.02291228,61179.0,61178.0,0.00091521]
[1723349518167,3.02267399,61179.0,61178.0,0.00091521]
[1723349519294,3.01267399,61179.0,61178.0,0.00091521]
[1723349519459,2.75821569,61179.0,61178.0,0.00091521]
[1723349520094,2.98705169,61179.0,61178.0,0.00091521]
[1723349520310,2.67421569,61179.0,61178.0,0.00091521]
[1723349520513,2.09152153,61179.0,61178.0,0.00091521]
[1723349520774,2.23755896,61179.0,61178.0,0.00091521]
[1723349520984,2.23754986,61179.0,61178.0,0.00091521]
[1723349522692,2.10669279,61179.0,61178.0,0.00091521]
[1723349523463,2.33552879,61179.0,61178.0,0.00091521]
[1723349523615,2.10669279,61179.0,61178.0,0.00091521]
[1723349524113,2.33550564,61179.0,61178.0,0.00091521]
[1723349524316,2.6971189,61179.0,61178.0,0.00091521]
[1723349524935,2.4682829,61179.0,61178.0,0.00091521]
[1723349525125,2.69713169,61179.0,61178.0,0.00091521]
[1723349526769,2.61693169,61179.0,61178.0,0.00091521]
[1723349527171,2.46829569,61179.0,61178.0,0.00091521]
[1723349527775,2.46769875,61179.0,61178.0,0.00091521]
[1723349528286,2.69653475,61179.0,61178.0,0.00091521]
[1723349529281,2.69652322,61179.0,61178.0,0.00091521]
[1723349529891,2.69652584,61179.0,61178.0,0.00091521]
[1723349530144,2.6965234,61179.0,61178.0,0.00091521]
[1723349530450,2.6965234,61179.0,61178.0,0.14031521]
[1723349530451,2.4676874,61179.0,61178.0,0.14031521]
[1723349531179,2.4676874,61179.0,61178.0,0.00091521]
[1723349531559,2.69664524,61179.0,61178.0,0.00091521]
[1723349532759,2.63590201,61179.0,61178.0,0.00091521]
[1723349533254,2.69665434,61179.0,61178.0,0.00091521]
[1723349533510,2.63590201,61179.0,61178.0,0.00091521]
[1723349534675,2.69676106,61179.0,61178.0,0.00091521]
[1723349535152,2.63590201,61179.0,61178.0,0.00091521]
[1723349535846,2.8001749,61179.0,61178.0,0.00091521]
[1723349536082,2.86120471,61179.0,61178.0,0.00091521]
[1723349536459,3.00120471,61179.0,61178.0,0.00091521]
[1723349536642,2.93830471,61179.0,61178.0,0.00091521]
[1723349537462,2.77403182,61179.0,61178.0,0.00091521]
[1723349537667,2.77404851,61179.0,61178.0,0.00091521]
[1723349538697,2.7130187,61179.0,61178.0,0.00091521]
[1723349539025,2.77407301,61179.0,61178.0,0.00091521]
[1723349540539,2.93848516,61179.0,61178.0,0.00091521]
[1723349541290,2.93852954,61179.0,61178.0,0.00091521]
[1723349541741,2.93852675,61179.0,61178.0,0.00091521]
[1723349542648,2.85832675,61179.0,61178.0,0.00091521]
[1723349542860,2.93852675,61179.0,61178.0,0.00091521]
[1723349543413,2.86142675,61179.0,61178.0,0.00091521]
[1723349543652,2.86142039,61179.0,61178.0,0.00091521]
[1723349544293,2.72011353,61179.0,61178.0,0.00091521]
[1723349544501,2.86110584,61179.0,61178.0,0.00091521]
[1723349545134,2.86110714,61179.0,61178.0,0.00091521]
[1723349546640,2.86110714,61179.0,61178.0,0.14261521]
[1723349546800,2.69670126,61179.0,61178.0,0.14261521]
[1723349547002,2.46786526,61179.0,61178.0,0.14261521]
[1723349547521,2.69670126,61179.0,61178.0,0.14261521]
[1723349548300,1.88000749,61179.0,61178.0,0.14261521]
[1723349548503,2.3876578,61179.0,61178.0,0.14261521]
[1723349548703,0.77037788,61179.0,61178.0,0.14261521]
[1723349549291,0.87809244,61179.0,61178.0,0.14261521]
[1723349549489,0.86509244,61179.0,61178.0,0.14261521]
[1723349549703,0.87909244,61179.0,61178.0,0.14261521]
[1723349549916,0.89209244,61179.0,61178.0,0.14261521]
[1723349550119,0.87809244,61179.0,61178.0,0.14261521]
[1723349550584,0.86473052,61179.0,61178.0,0.14261521]
[1723349551260,0.8273736,61179.0,61178.0,0.14261521]
[1723349551504,0.8363736,61179.0,61178.0,0.14261521]
[1723349552946,0.83635249,61179.0,61178.0,0.14261521]
[1723349553557,0.76337788,61179.0,61178.0,0.14261521]
[1723349555208,0.81200918,61179.0,61178.0,0.14261521]
[1723349557654,0.8119978,61179.0,61178.0,0.14261521]
[1723349558061,0.76337788,61179.0,61178.0,0.14261521]
[1723349559216,0.75437788,61179.0,61178.0,0.14261521]
[1723349559445,0.97221388,61179.0,61178.0,0.14261521]
[1723349559669,0.97922434,61179.0,61178.0,0.00091521]
[1723349559892,2.14596034,61179.0,61178.0,0.00091521]
[1723349560100,2.06411388,61179.0,61178.0,0.00091521]
[1723349560314,2.06211388,61179.0,61178.0,0.00091521]
[1723349560719,2.06511388,61179.0,61178.0,0.00091521]
[1723349561424,2.05911388,61179.0,61178.0,0.00091521]
[1723349561583,2.05911388,61179.0,61178.0,0.00191521]
[1723349561785,2.06611388,61179.0,61178.0,0.00191521]
[1723349561995,2.29194988,61179.0,61178.0,0.00191521]
[1723349562385,2.30094988,61179.0,61178.0,0.00191521]
[1723349562594,1.99191388,61179.0,61178.0,0.00191521]
[1723349562801,2.07211388,61179.0,61178.0,0.00191521]
[1723349563194,2.30094988,61179.0,61178.0,0.00191521]
[1723349563404,2.07211388,61179.0,61178.0,0.00191521]
[1723349564194,2.30094988,61179.0,61178.0,0.00191521]
[1723349566028,2.50919368,61179.0,61178.0,0.00191521]
[1723349566279,2.4467876,61179.0,61178.0,0.00191521]
[1723349566483,2.30094988,61179.0,61178.0,0.00191521]
[1723349568061,2.4465595,61179.0,61178.0,0.00191521]
[1723349568233,2.2177235,61179.0,61178.0,0.00191521]
[1723349568576,2.07211388,61179.0,61178.0,0.00191521]
[1723349569299,2.30094988,61179.0,61178.0,0.00191521]
[1723349569503,2.07211388,61179.0,61178.0,0.00191521]
[1723349569619,2.2177235,61179.0,61178.0,0.00191521]
[1723349570119,2.07211388,61179.0,61178.0,0.00191521]
[1723349572387,1.92841388,61179.0,61178.0,0.00191521]
[1723349576551,2.00911388,61179.0,61178.0,0.00191521]
[1723349578381,1.84821388,61179.0,61178.0,0.14211521]
[1723349578796,1.92841388,61179.0,61178.0,0.14211521]
[1723349580694,1.92841388,61179.0,61178.0,0.00191521]
[1723349581071,1.84821388,61179.0,61178.0,0.00191521]
[1723349581271,1.92841388,61179.0,61178.0,0.00191521]
[1723349585032,2.06971388,61179.0,61178.0,0.00191521]
[1723349585255,2.27753923,61179.0,61178.0,0.00191521]
[1723349585473,2.63950041,61179.0,61178.0,0.00191521]
[1723349585674,2.86833641,61179.0,61178.0,0.00191521]
[1723349586574,2.86835391,61179.0,61178.0,0.00191521]
[1723349587141,2.41801791,61179.0,61178.0,0.14701521]
[1723349587341,1.9103446,61179.0,61178.0,0.00191521]
[1723349587544,2.13629758,61179.0,61178.0,0.00191521]
[1723349587751,1.9905446,61179.0,61178.0,0.00191521]
[1723349589496,2.1361446,61179.0,61178.0,0.00191521]
[1723349589831,2.78957659,61179.0,61178.0,0.00191521]
[1723349589945,2.64379988,61179.0,61178.0,0.00191521]
[1723349590875,2.78963169,61179.0,61178.0,0.00191521]
[1723349591115,2.28197641,61179.0,61178.0,0.00191521]
[1723349591891,2.20177641,61179.0,61178.0,0.00191521]
[1723349592090,2.21557641,61179.0,61178.0,0.00191521]
[1723349592924,1.9905446,61179.0,61178.0,0.00191521]
[1723349594167,1.92841388,61179.0,61178.0,0.00191521]
[1723349594374,1.99034531,61179.0,61178.0,0.00191521]
[1723349595464,1.92841388,61179.0,61178.0,0.00191521]
[1723349595809,1.99036973,61179.0,61178.0,0.00191521]
[1723349596245,1.91016973,61179.0,61178.0,0.00191521]
[1723349596505,1.99036973,61179.0,61178.0,0.00191521]
[1723349597246,1.98944733,61179.0,61178.0,0.00191521]
[1723349597417,1.92841388,61179.0,61178.0,0.00191521]
[1723349598645,1.84821388,61179.0,61178.0,0.00191521]
[1723349598845,1.92841388,61179.0,61178.0,0.00191521]
[1723349599126,1.92841388,61179.0,61178.0,0.07921521]
[1723349600131,1.84821388,61179.0,61178.0,0.07921521]
[1723349600314,1.51937788,61179.0,61178.0,0.14041521]
[1723349600759,1.67261204,61179.0,61178.0,0.00191521]
[1723349600910,1.59957788,61179.0,61178.0,0.00191521]
[1723349601229,1.69695219,61179.0,61178.0,0.00191521]
[1723349601666,1.72129169,61179.0,61178.0,0.00191521]
[1723349601867,1.82841388,61179.0,61178.0,0.00191521]
[1723349602068,1.59957788,61179.0,61178.0,0.00191521]
[1723349602276,1.82841388,61179.0,61178.0,0.00191521]
[1723349602503,1.59957788,61179.0,61178.0,0.00191521]
[1723349604672,1.51937788,61179.0,61178.0,0.00191521]
[1723349604877,1.59957788,61179.0,61178.0,0.00191521]
[1723349606607,1.51937788,61179.0,61178.0,0.00191521]
[1723349606865,1.59957788,61179.0,61178.0,0.00191521]
[1723349607166,1.67987788,61179.0,61178.0,0.00191521]
[1723349607352,1.59957788,61179.0,61178.0,0.00191521]
[1723349608252,1.97271388,61179.0,61178.0,0.00191521]
[1723349608972,1.90871388,61179.0,61178.0,0.00191521]
[1723349609176,1.82841388,61179.0,61178.0,0.00191521]
[1723349610026,1.59957788,61179.0,61178.0,0.00191521]
[1723349613731,1.82841388,61179.0,61178.0,0.00191521]
[1723349614711,1.59957788,61179.0,61178.0,0.00191521]
[1723349615925,1.82841388,61179.0,61178.0,0.00191521]
[1723349616331,1.97341388,61179.0,61178.0,0.00191521]
[1723349617365,1.96677292,61179.0,61178.0,0.00191521]
[1723349617734,1.90407292,61179.0,61178.0,0.00191521]
[1723349618352,1.91152157,61179.0,61178.0,0.00191521]
[1723349620990,1.82922157,61179.0,61178.0,0.00191521]
[1723349621589,1.52018557,61179.0,61178.0,0.00191521]
[1723349622190,1.74902157,61179.0,61178.0,0.00191521]
[1723349622743,1.89402157,61179.0,61178.0,0.00191521]
[1723349623765,1.74902157,61179.0,61178.0,0.00191521]
[1723349623969,0.02428065,61179.0,61178.0,0.14531521]
[1723349624128,0.02428065,61179.0,61178.0,0.28107884]
[1723349624949,0.01528065,61179.0,61178.0,0.28107884]
[1723349625597,0.01528065,61179.0,61178.0,0.28434765]
[1723349625790,0.00828065,61179.0,61178.0,0.28333995]
[1723349625990,0.00828065,61179.0,61178.0,0.28007114]
[1723349626195,0.00928065,61179.0,61178.0,0.28407114]
[1723349626572,0.00928065,61179.0,61178.0,0.40176002]
[1723349626782,0.00928065,61179.0,61178.0,0.40476002]
[1723349628320,0.00928065,61179.0,61178.0,0.29034002]
[1723349629398,0.00928065,61179.0,61178.0,0.29033932]
[1723349630252,0.00928065,61179.0,61178.0,0.28707044]
[1723349630697,0.572192,61168.0,61167.0,0.009141]
[1723349630899,0.572192,61168.0,61163.0,0.0048852]
[1723349630900,0.269446,61164.0,61163.0,0.0048852]
[1723349631104,1.60475427,61164.0,61163.0,0.0048852]
[1723349631303,1.11648024,61164.0,61163.0,0.0048852]
[1723349631524,1.23025494,61164.0,61163.0,0.0048852]
[1723349631978,1.29684573,61164.0,61163.0,0.0048852]
[1723349632182,1.50919991,61164.0,61163.0,0.0048852]
[1723349632386,1.48486594,61164.0,61163.0,0.0048852]
[1723349632586,1.50786477,61164.0,61163.0,0.0048852]
[1723349632794,1.54615665,61164.0,61163.0,0.0048852]
[1723349632996,1.65356063,61164.0,61163.0,0.0048852]
[1723349633226,1.38766863,61164.0,61163.0,0.0048852]